bitfinex/quotes_BTCUSD_20240719
["timestamp","ask_amount","ask_price","bid_price","bid_amount"]
[1721373214792,0.00083,63981.0,63980.0,0.468895]
[1721373215006,0.00083,63981.0,63980.0,0.68687674]
[1721373215148,0.00083,63981.0,63980.0,0.37427974]
[1721373215555,0.00083,63981.0,63980.0,0.21798174]
[1721373215749,0.00283,63981.0,63980.0,0.21798174]
[1721373216274,0.00283,63981.0,63980.0,0.6900021]
[1721373216435,0.00283,63981.0,63980.0,0.68687674]
[1721373217093,0.00283,63981.0,63980.0,0.37427974]
[1721373217523,0.00283,63981.0,63980.0,0.21798174]
[1721373217749,0.00083,63981.0,63980.0,0.21798174]
[1721373218133,0.00283,63981.0,63980.0,0.21798174]
[1721373218286,0.00283,63981.0,63980.0,0.22098174]
[1721373218483,0.00283,63981.0,63980.0,0.22968137]
[1721373218685,0.00283,63981.0,63980.0,0.22698174]
[1721373218686,0.00383,63981.0,63980.0,0.22698174]
[1721373220307,0.00383,63981.0,63980.0,0.009]
[1721373221423,0.00083,63981.0,63973.0,0.0631]
[1721373221636,0.07717479,63977.0,63974.0,0.15438174]
[1721373222484,0.004624,63981.0,63980.0,0.006]
[1721373222689,0.08476432,63981.0,63974.0,0.31878174]
[1721373222933,0.07717479,63977.0,63974.0,0.31878174]
[1721373223106,0.07817479,63977.0,63974.0,0.32778174]
[1721373223316,0.07817479,63977.0,63974.0,0.31878174]
[1721373223512,0.07817479,63977.0,63974.0,0.32578174]
[1721373223513,0.001,63977.0,63974.0,0.32578174]
[1721373224534,0.07717479,63976.0,63974.0,0.32578174]
[1721373224934,0.07717479,63976.0,63974.0,0.31878174]
[1721373225138,0.07717479,63976.0,63974.0,0.32878174]
[1721373225340,0.07717479,63976.0,63974.0,0.33778174]
[1721373225767,0.07717479,63976.0,63974.0,0.32778174]
[1721373226089,0.07717479,63976.0,63974.0,0.17238174]
[1721373226240,0.07717479,63976.0,63974.0,0.16338174]
[1721373226442,0.07717479,63976.0,63974.0,0.15438174]
[1721373226671,0.07817479,63976.0,63974.0,0.16638174]
[1721373226869,0.07817479,63976.0,63974.0,0.17438174]
[1721373228397,0.07817479,63976.0,63974.0,0.16638174]
[1721373228552,0.07817479,63976.0,63974.0,0.17538174]
[1721373231321,0.001,63976.0,63974.0,0.17538174]
[1721373232078,0.001,63976.0,63974.0,0.33978174]
[1721373233325,0.001,63976.0,63974.0,0.17538174]
[1721373233706,0.60398628,63975.0,63974.0,0.021]
[1721373233900,0.96277023,63975.0,63974.0,0.021]
[1721373234098,0.97282995,63975.0,63974.0,0.021]
[1721373234298,1.06515386,63975.0,63974.0,0.009]
[1721373234577,0.51894,63974.0,63973.0,0.00966547]
[1721373234776,0.156322,63971.0,63963.0,0.1644]
[1721373235102,0.31855307,63970.0,63964.0,0.15438174]
[1721373235304,0.08398704,63969.0,63964.0,0.15438174]
[1721373235434,0.08398704,63969.0,63965.0,0.1644]
[1721373235635,0.04615715,63974.0,63970.0,0.1644]
[1721373235841,0.08447875,63973.0,63972.0,0.1644]
[1721373236078,0.08447875,63973.0,63972.0,0.31878174]
[1721373237191,0.13064819,63973.0,63972.0,0.31878174]
[1721373237539,0.08447875,63973.0,63972.0,0.31878174]
[1721373237745,0.04616944,63977.0,63972.0,0.31878174]
[1721373237952,0.08526915,63976.0,63973.0,0.32190731]
[1721373238156,0.04616944,63978.0,63973.0,0.32190731]
[1721373238356,0.0852697,63977.0,63973.0,0.32190731]
[1721373238768,0.00083,63981.0,63978.0,0.1644]
[1721373238988,0.00083,63981.0,63979.0,0.31878174]
[1721373238989,0.16219991,63980.0,63979.0,0.31878174]
[1721373239215,0.07717479,63980.0,63979.0,0.31878174]
[1721373240415,0.07717479,63980.0,63979.0,0.15438174]
[1721373241350,0.07717479,63980.0,63979.0,0.15738174]
[1721373241973,0.07717479,63980.0,63979.0,0.15838174]
[1721373242474,0.07717479,63980.0,63979.0,0.16038174]
[1721373242721,0.07717479,63980.0,63979.0,0.31668274]
[1721373242923,0.07717479,63980.0,63979.0,0.32618038]
[1721373243912,0.07717479,63980.0,63979.0,1.11578438]
[1721373244127,0.07717479,63980.0,63979.0,0.79918238]
[1721373244334,0.07717479,63980.0,63979.0,0.79718238]
[1721373244540,0.07717479,63980.0,63979.0,0.80218238]
[1721373244698,0.07717479,63980.0,63979.0,0.80118238]
[1721373245098,0.07817479,63980.0,63979.0,0.82618238]
[1721373245301,0.07817479,63980.0,63979.0,0.82018238]
[1721373245503,0.07817479,63980.0,63979.0,1.13878438]
[1721373245710,0.07817479,63980.0,63979.0,1.14578438]
[1721373245711,0.002,63980.0,63979.0,1.14578438]
[1721373246111,0.002,63980.0,63979.0,1.13978438]
[1721373246566,0.002,63980.0,63979.0,1.14578438]
[1721373246768,0.07717479,63987.0,63986.0,0.320684]
[1721373246995,0.07717479,63987.0,63986.0,0.92603374]
[1721373247327,0.07717479,63987.0,63986.0,1.23860174]
[1721373247756,0.07717479,63987.0,63986.0,1.55116974]
[1721373247975,0.07717479,63987.0,63986.0,1.57416974]
[1721373248570,0.07717479,63987.0,63986.0,1.58287136]
[1721373248768,0.07817479,63987.0,63986.0,1.59187136]
[1721373249119,0.001,63987.0,63986.0,1.59187136]
[1721373249330,0.001,63987.0,63986.0,1.60141018]
[1721373249533,0.001,63987.0,63986.0,1.59270856]
[1721373249662,0.001,63987.0,63986.0,1.59970856]
[1721373250321,0.001,63987.0,63986.0,1.59270856]
[1721373250700,0.07717479,63994.0,63993.0,0.945735]
[1721373250881,0.07717479,63994.0,63993.0,1.10011674]
[1721373251260,0.07717479,63994.0,63993.0,1.41265074]
[1721373252027,0.07717479,64001.0,63993.0,1.41265074]
[1721373252365,0.07717479,64001.0,64000.0,0.32065]
[1721373252572,0.06580824,64001.0,64000.0,1.10003174]
[1721373252783,0.00834,64004.0,64003.0,0.777712]
[1721373252907,0.00834,64004.0,64003.0,1.03209374]
[1721373253109,0.00834,64004.0,64003.0,1.50897874]
[1721373254003,0.00834,64004.0,64003.0,1.51768039]
[1721373254188,0.00834,64004.0,64003.0,1.89426539]
[1721373254822,0.00834,64004.0,64003.0,1.88556374]
[1721373255164,0.00834,64004.0,64003.0,1.90923685]
[1721373255566,0.00834,64004.0,64003.0,1.92323685]
[1721373255915,0.00834,64004.0,64003.0,1.90923685]
[1721373256097,0.00834,64019.0,64017.0,1.093459]
[1721373256295,0.00834,64019.0,64017.0,1.47584074]
[1721373256755,0.00834,64019.0,64017.0,1.41224074]
[1721373258960,0.00834,64019.0,64017.0,1.42124074]
[1721373259591,0.00834,64019.0,64017.0,1.44394008]
[1721373260189,0.00834,64019.0,64017.0,1.43524074]
[1721373260562,0.00834,64019.0,64018.0,1.257842]
[1721373260766,0.00834,64019.0,64018.0,1.41222374]
[1721373260967,0.00837,64026.0,64018.0,1.41222374]
[1721373260968,0.00837,64026.0,64022.0,0.94538]
[1721373261233,0.00837,64026.0,64022.0,1.41215374]
[1721373261694,0.15747479,64023.0,64022.0,0.31057774]
[1721373261954,0.15747479,64023.0,64022.0,0.62296974]
[1721373262688,0.00837,64026.0,64024.0,0.780955]
[1721373262928,0.00837,64026.0,64024.0,1.09973674]
[1721373263174,0.00837,64026.0,64024.0,1.41211874]
[1721373263902,0.00837,64026.0,64024.0,1.42081618]
[1721373264160,0.00837,64026.0,64024.0,1.74719818]
[1721373264379,0.00837,64026.0,64024.0,1.73319818]
[1721373264584,0.00837,64026.0,64024.0,1.73850074]
[1721373264792,0.00837,64026.0,64024.0,1.83850074]
[1721373265205,0.00837,64026.0,64024.0,1.82450074]
[1721373265437,0.00837,64026.0,64024.0,1.83850074]
[1721373265654,0.00837,64026.0,64024.0,1.52611874]
[1721373265863,0.14518,64025.0,64024.0,0.028]
[1721373266069,0.14518,64025.0,64024.0,0.014]
[1721373266487,0.14518,64025.0,64024.0,0.03724805]
[1721373266913,0.14518,64025.0,64024.0,0.170191]
[1721373267125,0.14518,64025.0,64024.0,0.65095474]
[1721373267338,0.14518,64025.0,64024.0,0.96333674]
[1721373267540,0.00838,64025.0,64024.0,0.93533674]
[1721373267966,0.00838,64025.0,64024.0,0.94933674]
[1721373268167,0.00838,64025.0,64024.0,0.63695474]
[1721373268381,0.00838,64025.0,64024.0,0.62295474]
[1721373268594,0.00838,64025.0,64024.0,0.93533674]
[1721373268821,0.00838,64025.0,64024.0,0.94633674]
[1721373269029,0.00838,64025.0,64024.0,0.95933674]
[1721373269903,0.00838,64025.0,64024.0,0.94633674]
[1721373270110,0.00838,64025.0,64024.0,0.94833674]
[1721373270530,0.00838,64025.0,64024.0,0.94633674]
[1721373270782,0.00838,64025.0,64024.0,0.96033674]
[1721373270964,0.00838,64025.0,64024.0,0.94933674]
[1721373271372,0.00838,64025.0,64024.0,0.96233674]
[1721373271750,0.00838,64025.0,64024.0,0.94933674]
[1721373272154,0.00838,64025.0,64024.0,0.93533674]
[1721373272498,0.00838,64025.0,64024.0,0.94933674]
[1721373272711,0.00838,64025.0,64024.0,0.93533674]
[1721373272926,0.00838,64025.0,64024.0,0.62295474]
[1721373273206,0.00838,64025.0,64024.0,0.16838174]
[1721373273410,0.00838,64025.0,64024.0,0.014]
[1721373273615,0.08598,64025.0,64024.0,0.014]
[1721373273811,0.002794,64024.0,64023.0,0.47820126]
[1721373274024,0.07717479,64024.0,64023.0,0.156193]
[1721373274429,0.07717479,64024.0,64023.0,0.46858]
[1721373274584,0.07717479,64024.0,64023.0,0.156193]
[1721373275407,0.002794,64023.0,64022.0,0.156196]
[1721373275642,0.07717479,64024.0,64023.0,0.014]
[1721373275845,0.07717479,64024.0,64023.0,0.170193]
[1721373276289,0.08598,64025.0,64024.0,0.468573]
[1721373276492,0.00838,64025.0,64024.0,0.93533674]
[1721373277517,0.00838,64025.0,64024.0,0.31057274]
[1721373277721,0.05838,64025.0,64023.0,0.014]
[1721373277933,0.07717479,64024.0,64023.0,0.014]
[1721373278563,0.07717479,64024.0,64020.0,0.32164149]
[1721373278564,0.07717479,64024.0,64022.0,0.156196]
[1721373278965,0.07717479,64024.0,64023.0,0.93847225]
[1721373279171,0.07717479,64024.0,64023.0,0.94934874]
[1721373280161,0.07717479,64024.0,64023.0,0.96334874]
[1721373280579,0.07717479,64024.0,64023.0,0.94934874]
[1721373280763,0.07717479,64024.0,64023.0,1.26173574]
[1721373281652,0.07717479,64024.0,64023.0,1.24773574]
[1721373282147,0.07717479,64024.0,64023.0,1.42613574]
[1721373282340,0.07717479,64024.0,64023.0,1.44013574]
[1721373282493,0.07017479,64024.0,64023.0,0.96334874]
[1721373282719,0.07017479,64024.0,64023.0,0.94934874]
[1721373283099,0.07017479,64024.0,64023.0,0.96334874]
[1721373283301,0.07017479,64024.0,64023.0,0.94934874]
[1721373283512,0.00838,64025.0,64024.0,1.257737]
[1721373283710,0.00838,64025.0,64024.0,1.41211874]
[1721373284002,0.00838,64025.0,64024.0,1.51211874]
[1721373284161,0.00838,64025.0,64024.0,1.52082157]
[1721373284715,0.00838,64025.0,64024.0,1.51582157]
[1721373285599,0.00838,64025.0,64024.0,1.52982157]
[1721373286044,0.00838,64025.0,64024.0,1.54382157]
[1721373286399,0.00838,64025.0,64024.0,1.35671874]
[1721373286615,0.00838,64025.0,64024.0,1.52111874]
[1721373286962,0.00838,64025.0,64024.0,1.53511874]
[1721373287140,0.00838,64025.0,64024.0,1.65485767]
[1721373287348,0.00838,64025.0,64024.0,1.64085767]
[1721373287588,0.00838,64025.0,64024.0,1.53511874]
[1721373287789,0.00838,64025.0,64024.0,1.54911874]
[1721373288672,0.00838,64025.0,64024.0,1.66866458]
[1721373289124,0.00838,64025.0,64024.0,1.54911874]
[1721373289295,0.00838,64025.0,64024.0,1.66862575]
[1721373289513,0.00838,64025.0,64024.0,2.11880714]
[1721373290448,0.00838,64025.0,64024.0,1.98530074]
[1721373290649,0.00838,64025.0,64024.0,2.07678782]
[1721373290895,0.00838,64025.0,64024.0,2.09078782]
[1721373292212,0.00838,64025.0,64024.0,2.10478782]
[1721373292811,0.00838,64025.0,64024.0,2.10516169]
[1721373293364,0.00838,64025.0,64024.0,2.1051925]
[1721373293713,0.00838,64025.0,64024.0,2.0295925]
[1721373296423,0.00838,64025.0,64024.0,2.02948503]
[1721373298132,0.008192,64025.0,64024.0,2.02948503]
[1721373299243,0.008192,64025.0,64024.0,1.53511874]
[1721373300410,0.008192,64025.0,64024.0,1.22273674]
[1721373300691,0.146292,64025.0,64024.0,0.18238174]
[1721373300902,0.146292,64025.0,64024.0,0.028]
[1721373301483,0.196292,64025.0,64024.0,0.028]
[1721373301896,0.146292,64025.0,64020.0,0.00924049]
[1721373302093,0.002794,64024.0,64020.0,0.31058274]
[1721373302831,0.0774,64020.0,64011.0,0.312444]
[1721373303047,0.0608,64021.0,64014.0,0.0093626]
[1721373303048,0.0779,64016.0,64014.0,0.0093626]
[1721373303251,0.12717479,64017.0,64009.0,0.15714]
[1721373303252,0.0779,64014.0,64009.0,0.15714]
[1721373303516,0.07717479,64010.0,64009.0,0.000913]
[1721373303941,0.22007479,64010.0,64009.0,0.000913]
[1721373304383,0.22007479,64010.0,64009.0,0.157141]
[1721373304781,0.22007479,64010.0,64009.0,0.000913]
[1721373304995,0.22007479,64010.0,64009.0,0.013913]
[1721373305350,0.22007479,64010.0,64009.0,0.000913]
[1721373305749,0.22007479,64010.0,64009.0,0.003913]
[1721373305957,0.22007479,64010.0,64009.0,0.008913]
[1721373306164,0.22007479,64010.0,64009.0,0.003913]
[1721373306370,0.22007479,64010.0,64009.0,0.15829474]
[1721373306579,0.22007479,64010.0,64009.0,0.62897874]
[1721373306745,0.22007479,64010.0,64009.0,0.62697874]
[1721373306951,0.22007479,64010.0,64009.0,0.003913]
[1721373307173,0.27007479,64010.0,64009.0,0.003913]
[1721373307377,0.27007479,64010.0,64009.0,0.000913]
[1721373307533,0.27007479,64010.0,64009.0,0.001913]
[1721373308208,0.27007479,64010.0,64009.0,0.000913]
[1721373308421,0.27007479,64010.0,64009.0,0.007913]
[1721373308857,0.27007479,64010.0,64009.0,0.000913]
[1721373309057,0.27007479,64010.0,64009.0,0.003913]
[1721373309340,0.27007479,64010.0,64009.0,0.000913]
[1721373309757,0.27007479,64010.0,64009.0,0.001913]
[1721373312274,0.1429,64010.0,64009.0,0.001913]
[1721373312495,0.1429,64010.0,64009.0,0.158141]
[1721373313125,0.06900857,64023.0,64009.0,0.158141]
[1721373313126,0.1388,64016.0,64015.0,0.156213]
[1721373313328,0.008192,64025.0,64016.0,0.00312359]
[1721373313543,0.008192,64025.0,64011.0,0.2256]
[1721373313544,0.008192,64025.0,64024.0,0.468573]
[1721373313766,0.008192,64025.0,64024.0,0.780955]
[1721373313968,0.008192,64025.0,64024.0,0.468573]
[1721373314183,0.008192,64025.0,64024.0,0.62295474]
[1721373314395,0.008192,64025.0,64024.0,0.93533674]
[1721373314598,0.008192,64025.0,64024.0,0.62295474]
[1721373314797,0.008192,64025.0,64024.0,0.93533674]
[1721373314911,0.008192,64025.0,64024.0,0.94233674]
[1721373315107,0.008192,64025.0,64024.0,0.96533674]
[1721373315524,0.002,64029.0,64028.0,0.468544]
[1721373315731,0.002,64029.0,64028.0,0.95828874]
[1721373315939,0.002,64029.0,64028.0,1.27065174]
[1721373316164,0.002,64029.0,64028.0,1.43535174]
[1721373316987,0.00834,64039.0,64035.0,1.257851]
[1721373317200,0.00834,64039.0,64035.0,1.43523274]
[1721373317424,0.00834,64039.0,64035.0,1.27053274]
[1721373318700,0.00834,64039.0,64035.0,1.45793742]
[1721373319249,0.00834,64039.0,64035.0,1.44393742]
[1721373319456,0.00834,64040.0,64039.0,0.156154]
[1721373319667,0.00834,64041.0,64039.0,0.156154]
[1721373319668,0.00423001,64041.0,64040.0,0.320852]
[1721373319873,0.00636805,64045.0,64044.0,1.257697]
[1721373320075,0.00636805,64045.0,64044.0,1.82436374]
[1721373320276,0.00636805,64045.0,64044.0,1.84736374]
[1721373321098,0.1399,64062.0,64044.0,0.75436674]
[1721373321306,0.08551479,64075.0,64062.0,0.780492]
[1721373321307,0.15024,64069.0,64062.0,0.780492]
[1721373321522,0.15024,64069.0,64062.0,0.93487374]
[1721373321723,0.15024,64069.0,64062.0,1.24707074]
[1721373322747,0.15024,64069.0,64062.0,1.25577188]
[1721373322887,0.15024,64069.0,64062.0,1.26677188]
[1721373323765,0.15024,64069.0,64062.0,1.25807074]
[1721373323976,0.15024,64069.0,64062.0,1.27107074]
[1721373324174,0.15024,64069.0,64068.0,0.78042]
[1721373324376,0.15024,64069.0,64068.0,0.93480174]
[1721373324377,0.08674,64069.0,64068.0,0.93480174]
[1721373325432,0.08674,64069.0,64068.0,0.94080174]
[1721373326294,0.01034,64069.0,64068.0,1.24696974]
[1721373326481,0.01034,64069.0,64068.0,0.94180174]
[1721373326904,0.01034,64069.0,64068.0,0.93480174]
[1721373327021,0.01034,64069.0,64068.0,0.94680174]
[1721373327222,0.01034,64069.0,64068.0,1.25896974]
[1721373327485,0.01034,64069.0,64068.0,1.24696974]
[1721373327887,0.01034,64069.0,64068.0,1.25896974]
[1721373328713,0.01034,64069.0,64068.0,1.26896974]
[1721373329340,0.01034,64069.0,64068.0,1.25696974]
[1721373329544,0.01034,64069.0,64068.0,1.25996974]
[1721373329742,0.01034,64069.0,64068.0,1.27096974]
[1721373330375,0.01034,64069.0,64068.0,1.28396974]
[1721373332400,0.01034,64069.0,64068.0,1.30696974]
[1721373333651,0.01034,64069.0,64068.0,1.26996974]
[1721373334108,0.01034,64069.0,64068.0,1.26096974]
[1721373334310,0.01034,64069.0,64068.0,1.24696974]
[1721373334436,0.01034,64069.0,64068.0,1.65913774]
[1721373334636,0.01034,64069.0,64068.0,1.36096974]
[1721373335466,0.01034,64069.0,64068.0,1.37496974]
[1721373336189,0.01034,64069.0,64068.0,1.36096974]
[1721373336391,0.01034,64069.0,64068.0,1.37496974]
[1721373338856,0.01034,64069.0,64068.0,1.39796974]
[1721373339046,0.01034,64069.0,64068.0,1.40666722]
[1721373340107,0.01034,64069.0,64068.0,1.39796974]
[1721373341473,0.01034,64069.0,64068.0,1.37496974]
[1721373342826,0.07717479,64075.0,64074.0,0.156069]
[1721373343061,0.07717479,64075.0,64074.0,0.62258974]
[1721373343267,0.07717479,64075.0,64074.0,1.24686774]
[1721373343855,0.07717479,64088.0,64074.0,1.24686774]
[1721373343856,0.00834,64090.0,64080.0,0.312109]
[1721373344090,0.015447,64082.0,64081.0,0.59813374]
[1721373344271,0.015447,64082.0,64081.0,1.22234174]
[1721373344669,0.015447,64082.0,64081.0,1.53444574]
[1721373345856,0.015447,64082.0,64081.0,1.54314854]
[1721373346061,0.015447,64082.0,64081.0,1.55714854]
[1721373346640,0.015447,64082.0,64081.0,1.072029]
[1721373346839,0.015447,64082.0,64081.0,0.745925]
[1721373347043,0.015447,64082.0,64081.0,1.058029]
[1721373347640,0.015447,64082.0,64081.0,1.044029]
[1721373348022,0.015447,64082.0,64081.0,1.058029]
[1721373348336,0.015447,64082.0,64081.0,1.370133]
[1721373348738,0.002,64089.0,64088.0,1.092245]
[1721373348996,0.002,64089.0,64088.0,1.24662674]
[1721373350151,0.002,64089.0,64088.0,1.76039674]
[1721373350371,0.002,64089.0,64088.0,1.46232674]
[1721373350750,0.002,64089.0,64088.0,1.47632674]
[1721373350954,0.002,64089.0,64088.0,1.46232674]
[1721373351126,0.002,64089.0,64088.0,1.47632674]
[1721373351742,0.002,64089.0,64088.0,1.44832674]
[1721373352419,0.002,64089.0,64088.0,1.4577933]
[1721373352576,0.002,64089.0,64088.0,1.4437933]
[1721373352947,0.002,64089.0,64088.0,1.5577933]
[1721373353144,0.002,64089.0,64088.0,1.5717933]
[1721373353349,0.002,64089.0,64088.0,1.3700933]
[1721373353550,0.002,64089.0,64088.0,0.7319533]
[1721373353801,0.002,64089.0,64088.0,0.7599533]
[1721373354021,0.002,64089.0,64088.0,1.0720233]
[1721373354224,0.002,64089.0,64088.0,1.0580233]
[1721373354396,0.002,64089.0,64088.0,1.0440233]
[1721373355076,0.002,64089.0,64088.0,1.0580233]
[1721373355296,0.002,64089.0,64088.0,1.5347933]
[1721373355518,0.002,64089.0,64088.0,1.5577933]
[1721373355750,0.002,64089.0,64088.0,1.5717933]
[1721373355945,0.002,64089.0,64088.0,1.4070933]
[1721373356348,0.002,64089.0,64088.0,1.0810233]
[1721373356630,0.002,64089.0,64088.0,1.0440233]
[1721373356835,0.002,64089.0,64088.0,1.0720233]
[1721373357029,0.002,64089.0,64088.0,1.0580233]
[1721373357177,0.002,64089.0,64088.0,1.0440233]
[1721373357383,0.002,64089.0,64088.0,1.3700933]
[1721373357706,0.002,64089.0,64088.0,1.3840933]
[1721373358261,0.002,64089.0,64088.0,1.3700933]
[1721373358982,0.002,64089.0,64088.0,1.3560933]
[1721373359395,0.002,64089.0,64088.0,1.3700933]
[1721373359764,0.002,64089.0,64088.0,1.5577933]
[1721373359966,0.002,64089.0,64088.0,1.5717933]
[1721373360372,0.002,64089.0,64088.0,1.5577933]
[1721373360520,0.002,64089.0,64088.0,1.5437933]
[1721373360725,0.002,64089.0,64088.0,1.5717933]
[1721373360920,0.002,64089.0,64088.0,1.5577933]
[1721373361129,0.002,64089.0,64088.0,1.0580233]
[1721373361344,0.002,64089.0,64088.0,1.0720233]
[1721373361582,0.002,64089.0,64088.0,1.3700933]
[1721373361979,0.002,64089.0,64088.0,1.3840933]
[1721373362184,0.002,64089.0,64088.0,1.0580233]
[1721373362681,0.1461,64089.0,64088.0,0.1778483]
[1721373362881,0.1461,64089.0,64088.0,0.3478833]
[1721373363483,0.1461,64089.0,64088.0,0.3198833]
[1721373363835,0.1461,64089.0,64088.0,0.3478833]
[1721373364040,0.1461,64089.0,64088.0,0.6459533]
[1721373364292,0.1461,64089.0,64088.0,0.9580233]
[1721373364496,0.002,64089.0,64088.0,1.2840933]
[1721373364875,0.002,64089.0,64088.0,0.9720233]
[1721373365284,0.002,64089.0,64088.0,0.9440233]
[1721373365486,0.002,64089.0,64088.0,0.6319533]
[1721373365688,0.002,64089.0,64088.0,0.1768483]
[1721373365907,0.002,64089.0,64088.0,0.3328833]
[1721373366135,0.002,64089.0,64088.0,0.32341674]
[1721373366340,0.002,64089.0,64088.0,0.31041674]
[1721373366818,0.002,64089.0,64088.0,0.32341674]
[1721373367042,0.002,64089.0,64088.0,0.33741674]
[1721373367532,0.002,64089.0,64088.0,0.18138174]
[1721373367757,0.002,64089.0,64088.0,0.19538174]
[1721373367986,0.002,64089.0,64088.0,0.18238174]
[1721373369050,0.002,64089.0,64088.0,0.19108277]
[1721373369565,0.0774,64089.0,64088.0,0.18238174]
[1721373369764,0.1389,64089.0,64088.0,0.18238174]
[1721373370167,0.1389,64089.0,64088.0,0.19538174]
[1721373370377,0.1389,64089.0,64088.0,0.35141674]
[1721373370583,0.1389,64089.0,64088.0,0.19538174]
[1721373370991,0.1389,64089.0,64088.0,0.35141674]
[1721373371169,0.13973,64089.0,64088.0,0.35141674]
[1721373372347,0.13973,64089.0,64088.0,0.66348674]
[1721373372830,0.13973,64089.0,64088.0,0.35141674]
[1721373376302,0.13973,64089.0,64088.0,0.66348674]
[1721373376519,0.13973,64089.0,64088.0,0.35141674]
[1721373377068,0.13973,64089.0,64088.0,0.66348674]
[1721373378334,0.13973,64089.0,64088.0,0.19538174]
[1721373378540,0.18973,64089.0,64088.0,0.041]
[1721373378954,0.345763,64089.0,64088.0,0.041]
[1721373379155,0.31036441,64089.0,64088.0,0.041]
[1721373379402,0.31036396,64089.0,64088.0,0.041]
[1721373379609,0.18973,64089.0,64088.0,0.041]
[1721373380174,0.26361307,64089.0,64088.0,0.041]
[1721373380377,0.23880003,64089.0,64088.0,0.041]
[1721373380582,0.23600603,64089.0,64088.0,0.041]
[1721373382446,0.18973,64089.0,64088.0,0.041]
[1721373383219,0.13973,64089.0,64088.0,0.041]
[1721373384311,0.18973,64089.0,64088.0,0.041]
[1721373384742,0.13973,64089.0,64088.0,0.041]
[1721373384946,0.18973,64089.0,64088.0,0.041]
[1721373385649,0.2591622,64089.0,64088.0,0.041]
[1721373386216,0.18973,64089.0,64088.0,0.041]
[1721373386423,0.25919068,64089.0,64088.0,0.041]
[1721373388579,0.18973,64089.0,64088.0,0.041]
[1721373389560,0.22034952,64089.0,64088.0,0.041]
[1721373391053,0.29503474,64089.0,64088.0,0.041]
[1721373391266,0.25921678,64089.0,64088.0,0.041]
[1721373392451,0.18973,64089.0,64088.0,0.041]
[1721373392721,0.13973,64089.0,64088.0,0.041]
[1721373393202,0.21467082,64089.0,64088.0,0.041]
[1721373393357,0.18973,64089.0,64088.0,0.041]
[1721373393753,0.13973,64089.0,64088.0,0.041]
[1721373393956,0.18973,64089.0,64088.0,0.041]
[1721373394400,0.45269847,64089.0,64088.0,0.041]
[1721373394616,1.17765053,64089.0,64088.0,0.041]
[1721373394810,2.1512126,64089.0,64088.0,0.041]
[1721373395017,0.97215,64082.0,64081.0,0.000913]
[1721373395245,1.26600669,64082.0,64081.0,0.000913]
[1721373395479,1.31873783,64082.0,64081.0,0.000913]
[1721373396264,1.17990553,64082.0,64081.0,0.000913]
[1721373397078,0.156079,64070.0,64062.0,0.00953897]
[1721373397256,0.156079,64070.0,64061.0,0.00018791]
[1721373397257,0.1332,64062.0,64061.0,0.00018791]
[1721373397643,0.1994,64062.0,64061.0,0.00018791]
[1721373397839,0.1494,64062.0,64061.0,0.00018791]
[1721373398296,0.04627687,64065.0,64061.0,0.00018791]
[1721373398497,0.11569218,64071.0,64064.0,0.312187]
[1721373398498,0.0753,64070.0,64064.0,0.312187]
[1721373398696,0.0753,64070.0,64067.0,0.312169]
[1721373398853,0.0753,64070.0,64068.0,0.156083]
[1721373399054,0.0753,64070.0,64069.0,0.00870612]
[1721373399256,0.20247479,64070.0,64069.0,0.00870612]
[1721373399882,0.05,64067.0,64063.0,0.156095]
[1721373400081,0.05,64067.0,64064.0,0.15438174]
[1721373400438,0.15247479,64070.0,64064.0,0.15438174]
[1721373400439,0.20247479,64070.0,64064.0,0.15438174]
[1721373400639,0.20247479,64070.0,64064.0,0.31047474]
[1721373400885,0.20247479,64070.0,64064.0,0.31147474]
[1721373401091,0.20247479,64070.0,64064.0,0.31047474]
[1721373401227,0.20247479,64070.0,64065.0,0.156091]
[1721373401436,0.001,64067.0,64066.0,0.62264674]
[1721373401635,0.07717479,64077.0,64066.0,0.62264674]
[1721373401636,0.0753,64075.0,64066.0,0.62264674]
[1721373401844,0.07717479,64070.0,64066.0,0.15438174]
[1721373402063,0.07817479,64070.0,64068.0,0.156083]
[1721373402272,0.001,64070.0,64069.0,0.156081]
[1721373402466,0.0753,64075.0,64070.0,0.156078]
[1721373402678,0.0753,64075.0,64071.0,0.156076]
[1721373402873,0.0753,64075.0,64069.0,0.468242]
[1721373403228,0.0753,64075.0,64068.0,0.15438174]
[1721373403229,0.05,64073.0,64070.0,0.00870511]
[1721373403370,0.05,64071.0,64070.0,0.00870511]
[1721373404028,0.0753,64075.0,64070.0,0.16478211]
[1721373404232,0.1253,64075.0,64070.0,0.16478211]
[1721373404801,0.05,64071.0,64070.0,0.00870511]
[1721373405002,0.05,64072.0,64070.0,0.00870511]
[1721373405209,0.001,64071.0,64070.0,0.00870511]
[1721373405408,0.05,64072.0,64070.0,0.00870511]
[1721373405607,0.0753,64075.0,64070.0,0.00870511]
[1721373405608,0.1253,64075.0,64070.0,0.00870511]
[1721373405810,0.1263,64075.0,64070.0,0.16978211]
[1721373406032,0.0763,64075.0,64070.0,0.16978211]
[1721373406237,0.0763,64075.0,64074.0,0.156069]
[1721373406238,0.001,64075.0,64074.0,0.156069]
[1721373406408,0.001,64075.0,64074.0,0.62258974]
[1721373407283,0.001,64075.0,64074.0,0.31045074]
[1721373407483,0.05,64078.0,64074.0,0.31045074]
[1721373407637,0.05,64078.0,64075.0,0.31044774]
[1721373407838,0.07717479,64079.0,64076.0,0.156063]
[1721373408743,0.07717479,64079.0,64077.0,0.156061]
[1721373409145,0.07817479,64079.0,64077.0,0.156061]
[1721373409331,0.07817479,64079.0,64076.0,0.001]
[1721373409540,0.07817479,64079.0,64076.0,0.157063]
[1721373409772,0.07817479,64079.0,64076.0,0.162063]
[1721373410646,0.07717479,64079.0,64076.0,0.161063]
[1721373410787,0.07817479,64079.0,64077.0,0.001]
[1721373411190,0.07817479,64079.0,64076.0,0.161063]
[1721373411395,0.07817479,64079.0,64076.0,0.162062]
[1721373411396,0.07917479,64079.0,64076.0,0.162062]
[1721373411576,0.07917479,64079.0,64077.0,0.156062]
[1721373411787,0.07817479,64079.0,64077.0,0.156062]